[Event "44th Chess Olympiad Women 2022"]
[Site "Chennai"]
[Date "2022.08.09"]
[Round "11.42"]
[White "Nansubuga, Gloria"]
[Black "Lampard, Alice"]
[Result "0-1"]
[ECO "D87"]
[WhiteElo "1538"]
[BlackElo "1729"]
[Annotator "NA RC COMBH"]
[PlyCount "126"]
[EventDate "2022.07.29"]
[EventType "team-tourn"]
[EventCountry "IND"]
[SourceTitle "playchess.com"]
[Source "ChessBase"]
[SourceQuality "1"]
[WhiteTeam "Uganda"]
[BlackTeam "Scotland"]
[WhiteTeamCountry "UGA"]
[BlackTeamCountry "SCO"]
[TimeControl "40/5400+30:1800+30"]

1. d4 {[%emt 0:00:03]} Nf6 {[%emt 0:00:08]} 2. c4 {[%emt 0:00:09]} g6 {[%emt 0:00:09]} 3. Nc3 {[%emt 0:00:04]} d5 {[%emt 0:00:03]} 4. cxd5 {[%emt 0:00:33]} Nxd5 {[%emt 0:00:09]} 5. e4 {[%emt 0:00:34]} Nxc3 {[%emt 0:00:06]} 6. bxc3 {[%emt 0:00:07]} Bg7 {[%emt 0:00:11]} 7. Nf3 {[%emt 0:00:13]} O-O {[%emt 0:00:39]} 8. Bc4 {[%emt 0:00:16]} c5 {[%emt 0:06:07]} 9. Be3 {[%emt 0:03:07]} Nc6 {[%emt 0:01:07]} 10. O-O {[%emt 0:01:04]} cxd4 {[%emt 0:02:56]} 11. Nxd4 {[%emt 0:03:13]} Na5 {[%emt 0:05:04]} 12. Bd3 {[%emt 0:01:02]} Bd7 {[%emt 0:01:43]} 13. Rc1 {[%emt 0:00:44]} Rc8 {[%emt 0:01:41]} 14. Qd2 {[%emt 0:00:41]} Nc4 {[%emt 0:03:05]} 15. Qe2 {[%emt 0:01:48]} Nxe3 {[%emt 0:00:36]} 16. Qxe3 {[%emt 0:01:37]} a6 {[%emt 0:07:59]} 17. f4 {[%emt 0:01:41]} Bg4 {[%emt 0:01:19]} 18. e5 {[%emt 0:05:27]} Qb6 {[%emt 0:07:15]} 19. Kh1 {[%emt 0:07:47]} Rfd8 {[%emt 0:02:18]} 20. Qg3 {[%emt 0:03:39]} Bd7 {[%emt 0:05:12]} 21. f5 {[%emt 0:03:03]} Be8 {[%emt 0:03:23]} 22. fxg6 {[%emt 0:03:04]} hxg6 {[%emt 0:03:03]} 23. e6 {[%emt 0:01:27]} Bxd4 {[%emt 0:01:40]} 24. exf7+ {[%emt 0:00:18]} Bxf7 {[%emt 0:00:37]} 25. cxd4 {[%emt 0:00:49]} Rc7 {[%emt 0:02:50]} 26. Rc2 Rxc2 {[%emt 0:00:31]} 27. Rd1 {[%emt 0:00:19]} Rc1 28. Rxc1 {[%emt 0:00:59]} Qxd4 {[%emt 0:01:07]} 29. Be2 {[%emt 0:03:24]} Qd2 {[%emt 0:08:48]} 30. Qc7 {[%emt 0:01:58]} Bxa2 {[%emt 0:02:46]} 31. h3 {[%emt 0:03:00]} Qd7 {[%emt 0:02:17]} 32. Qb6 {[%emt 0:03:47]} Qd6 {[%emt 0:05:47]} 33. Qxb7 {[%emt 0:01:19]} Bd5 {[%emt 0:03:18]} 34. Qxa6 {[%emt 0:03:15]} Qg3 {[%emt 0:02:25]} 35. Bf3 {[%emt 0:11:29]} Bxf3 {[%emt 0:00:47]} 36. Qe6+ {[%emt 0:00:06]} Kf8 {[%emt 0:00:11]} 37. gxf3 {[%emt 0:00:32]} Qxf3+ {[%emt 0:00:23]} 38. Kg1 {[%emt 0:00:27]} Rd1+ {[%emt 0:04:56]} 39. Rxd1 {[%emt 0:00:03]} Qxd1+ {[%emt 0:00:09]} 40. Kf2 {[%emt 0:02:57]} Qc2+ {[%emt 0:00:53]} 41. Kg3 {[%emt 0:33:57]} Qf5 {[%emt 0:31:34]} 42. Qc6 {[%emt 0:03:34]} Qe5+ {[%emt 0:00:54]} 43. Kg2 {[%emt 0:02:32]} Qg5+ {[%emt 0:03:27]} 44. Kf3 {[%emt 0:02:12]} Qf6+ {[%emt 0:02:37]} 45. Qxf6+ {[%emt 0:00:24]} exf6 {[%emt 0:00:04]} 46. Kf4 {[%emt 0:00:22]} Kg7 {[%emt 0:00:13]} 47. Kg4 {[%emt 0:02:20]} Kh6 {[%emt 0:00:14]} 48. Kh4 {[%emt 0:01:09]} f5 {[%emt 0:02:52]} 49. Kg3 {[%emt 0:00:19]} Kg5 {[%emt 0:00:13]} 50. Kg2 {[%emt 0:02:31]} Kh4 {[%emt 0:00:58]} 51. Kh2 {[%emt 0:00:28]} f4 {[%emt 0:00:37]} 52. Kg2 {[%emt 0:00:56]} g5 {[%emt 0:00:22]} 53. Kh2 {[%emt 0:01:18]} f3 {[%emt 0:00:09]} 54. Kh1 {[%emt 0:00:37]} Kxh3 {[%emt 0:00:11]} 55. Kg1 {[%emt 0:00:11]} Kg3 {[%emt 0:00:42]} 56. Kh1 {[%emt 0:00:14]} Kf2 {[%emt 0:00:10]} 57. Kh2 {[%emt 0:00:11]} Ke2 {[%emt 0:00:16]} 58. Kg1 {[%emt 0:00:14]} f2+ {[%emt 0:00:13]} 59. Kg2 {[%emt 0:00:03]} f1=Q+ {[%emt 0:00:14]} 60. Kh2 {[%emt 0:00:06]} Qf4+ {[%emt 0:00:59]} 61. Kg2 {[%emt 0:00:09]} Qg4+ {[%emt 0:00:14]} 62. Kh2 {[%emt 0:00:14]} Kf2 {[%emt 0:00:09]} 63. Kh1 {[%emt 0:00:08]} Qg2# {[%emt 0:00:00]} 0-1

[Event "44th Chess Olympiad Women 2022"]
[Site "Chennai"]
[Date "2022.08.09"]
[Round "11.42"]
[White "Takali Milly"]
[Black "Reid, Caitlin"]
[Result "1-0"]
[ECO "D02"]
[WhiteElo "1482"]
[BlackElo "1437"]
[Annotator "NA RC COMBH"]
[PlyCount "77"]
[EventDate "2022.07.29"]
[EventType "team-tourn"]
[EventCountry "IND"]
[SourceTitle "playchess.com"]
[Source "ChessBase"]
[SourceQuality "1"]
[WhiteTeam "Uganda"]
[BlackTeam "Scotland"]
[WhiteTeamCountry "UGA"]
[BlackTeamCountry "SCO"]
[TimeControl "40/5400+30:1800+30"]

1. d4 {[%emt 0:00:04]} d5 {[%emt 0:00:08]} 2. e3 {[%emt 0:00:21]} Nc6 {[%emt 0:00:49]} 3. Nf3 {[%emt 0:00:12]} g6 {[%emt 0:00:16]} 4. Nc3 {[%emt 0:00:27]} Nf6 {[%emt 0:00:15]} 5. Be2 {[%emt 0:01:16]} Bg7 {[%emt 0:00:13]} 6. b3 {[%emt 0:02:15]} Ne4 {[%emt 0:00:34]} 7. Bb2 {[%emt 0:00:22]} Bf5 {[%emt 0:01:10]} 8. h3 {[%emt 0:00:56]} Qd7 {[%emt 0:01:11]} 9. Nxe4 {[%emt 0:05:11]} Bxe4 {[%emt 0:00:21]} 10. Qd2 {[%emt 0:01:18]} O-O {[%emt 0:01:47]} 11. O-O {[%emt 0:00:14]} a5 {[%emt 0:00:11]} 12. c4 {[%emt 0:00:10]} e6 {[%emt 0:00:38]} 13. Nh2 {[%emt 0:07:17]} Ne7 {[%emt 0:00:37]} 14. f3 {[%emt 0:00:08]} Bf5 {[%emt 0:00:46]} 15. g4 {[%emt 0:00:03]} Qd6 {[%emt 0:00:59]} 16. gxf5 {[%emt 0:01:08]} Qg3+ {[%emt 0:00:28]} 17. Kh1 {[%emt 0:00:04]} Nxf5 {[%emt 0:00:13]} 18. Bd3 {[%emt 0:05:23]} Qxh3 {[%emt 0:00:39]} 19. Bxf5 {[%emt 0:00:49]} Qxf5 {[%emt 0:03:19]} 20. Rae1 {[%emt 0:01:36]} dxc4 {[%emt 0:01:03]} 21. bxc4 {[%emt 0:00:24]} Qf6 {[%emt 0:00:41]} 22. e4 {[%emt 0:00:58]} Rfd8 {[%emt 0:01:02]} 23. Qf2 {[%emt 0:03:11]} c5 {[%emt 0:00:43]} 24. Ng4 {[%emt 0:03:58]} Qe7 {[%emt 0:00:51]} 25. d5 {[%emt 0:00:14]} Bf8 {[%emt 0:02:23]} 26. Bf6 {[%emt 0:00:22]} Qc7 {[%emt 0:00:19]} 27. Bxd8 {[%emt 0:00:16]} Rxd8 {[%emt 0:00:05]} 28. Qh2 {[%emt 0:00:08]} Qe7 {[%emt 0:00:47]} 29. e5 {[%emt 0:00:16]} h5 {[%emt 0:00:39]} 30. Nf6+ {[%emt 0:00:14]} Kh8 {[%emt 0:00:29]} 31. d6 {[%emt 0:00:14]} Rxd6 {[%emt 0:00:30]} 32. exd6 {[%emt 0:00:17]} Qxd6 {[%emt 0:00:40]} 33. Qxd6 {[%emt 0:00:21]} Bxd6 {[%emt 0:00:05]} 34. Rd1 {[%emt 0:00:11]} Be7 {[%emt 0:00:08]} 35. Ne4 {[%emt 0:00:09]} g5 {[%emt 0:00:15]} 36. Rd7 {[%emt 0:00:06]} Bf8 {[%emt 0:00:12]} 37. Rxf7 {[%emt 0:00:08]} Bg7 {[%emt 0:00:06]} 38. Nxc5 {[%emt 0:00:10]} Kg8 {[%emt 0:00:12]} 39. Rxb7 {[%emt 0:02:23]} 1-0

[Event "44th Chess Olympiad Women 2022"]
[Site "Chennai"]
[Date "2022.08.09"]
[Round "11.43"]
[White "Ortez, Andrea"]
[Black "Miller, Rachel"]
[Result "0-1"]
[ECO "C77"]
[WhiteElo "1908"]
[BlackElo "1961"]
[Annotator "TA"]
[PlyCount "86"]
[EventDate "2022.07.29"]
[EventType "team-tourn"]
[EventCountry "IND"]
[SourceTitle "playchess.com"]
[Source "ChessBase"]
[SourceQuality "1"]
[WhiteTeam "El Salvador"]
[BlackTeam "Jamaica"]
[WhiteTeamCountry "ESA"]
[BlackTeamCountry "JAM"]
[TimeControl "40/5400+30:1800+30"]

{[%evp 16,86,-12,-3,-11,-6,0,-4,0,-1,0,-25,0,-3,0,0,31,-18,0,-74,-25,-17,2,14,2,-6,-10,-5,-13,-54,-70,-203,-204,-202,-197,-193,-214,-195,-218,-303,-245,-233,-198,-204,-150,-246,-230,-225,-222,-231,-234,-235,-223,-212,-227,-318,-242,-244,-240,-453,-453,-446,-444,-768,-772,-1045,-1030,-1756,-1773,-1627,-1585,-1381,-1228]} 1. e4 {[%emt 0:00:02]} e5 {[%emt 0:00:14]} 2. Nf3 {[%emt 0:00:13]} Nc6 {[%emt 0:00:14]} 3. Bb5 {[%emt 0:00:23]} a6 {[%emt 0:00:24]} 4. Ba4 {[%emt 0:00:07]} Nf6 {[%emt 0:00:24]} 5. Qe2 {[%emt 0:00:31]} b5 {[%emt 0:00:30]} 6. Bb3 {[%emt 0:00:07]} Bc5 {[%emt 0:00:26]} 7. c3 {[%emt 0:00:58]} O-O {[%emt 0:02:25]} 8. O-O {[%emt 0:02:48]} d6 {[%emt 0:04:08]} 9. Rd1 {[%emt 0:01:34]} Bb6 {[%emt 0:00:54] C77: Ruy Lopez: 3...a6 4 Ba4 Nf6, unusual lines.} 10. d3 {[%emt 0:00:48]} h6 {[%emt 0:00:52]} 11. h3 {[%emt 0:02:33]} Re8 {[%emt 0:00:48] The position is equal.} 12. Nbd2 {[%emt 0:00:26]} Be6 {[%emt 0:02:44]} 13. Bc2 {[%emt 0:01:23]} d5 {[%emt 0:02:26]} 14. Nf1 {[%emt 0:02:20]} d4 {[%emt 0:02:48]} 15. Ng3 {[%emt 0:02:04]} Bc5 {[%emt 0:01:46]} 16. Nh4 {[%emt 0:11:05] [#]} (16. Bb3 $14) 16... Bf8 $146 {[%emt 0:04:37]} ({Predecessor:} 16... dxc3 17. bxc3 Ng4 18. hxg4 Qxh4 19. Nf5 Bxf5 20. gxf5 Rad8 21. a3 Rd6 22. Qf3 Nb8 23. Kf1 Nd7 {1-0 (50) Pozo,B (2214)-Macias Velazquez,M (2162) Havana 2013}) 17. Ngf5 {[%emt 0:17:23]} (17. Nf3 $11 {remains equal.}) 17... Kh7 {[%emt 0:03:35]} (17... a5 $17) 18. Nf3 $11 {[%emt 0:06:28]} g6 {[%emt 0:05:38]} 19. Ng3 {[%emt 0:00:50]} Qd6 {[%emt 0:02:53]} 20. cxd4 {[%emt 0:08:55]} Nxd4 {[%emt 0:03:02]} 21. Nxd4 {[%emt 0:00:20]} Qxd4 {[%emt 0:00:30]} 22. Be3 {[%emt 0:06:27]} Qxb2 {[%emt 0:02:06]} 23. d4 {[%emt 0:04:17] Now White is beyond hope.} (23. a4 $15) 23... Bc4 $19 {[%emt 0:00:45]} ({Stronger than} 23... Bxa2 24. Bd3 Qxe2 25. Nxe2 $17) 24. Qf3 {[%emt 0:14:31]} Qxc2 {[%emt 0:04:36]} 25. Qxf6 {[%emt 0:07:24]} Bg7 {[%emt 0:00:58]} 26. Qh4 {[%emt 0:01:23]} exd4 {[%emt 0:02:23]} 27. Rxd4 {[%emt 0:03:30]} c5 {[%emt 0:00:56][%cal Bc7c5,Bc5c4,Bc4c3][%mdl 32]} 28. Rd2 {[%emt 0:02:16]} Qc3 {[%emt 0:01:07]} 29. Rad1 {[%emt 0:00:17]} Be6 {[%emt 0:03:16] This bishop pair is nice.} 30. Ne2 {[%emt 0:02:00]} (30. Kh2 $17) 30... Qe5 {[%emt 0:01:54]} 31. f3 {[%emt 0:00:23]} Rac8 {[%emt 0:02:05]} 32. Qf2 {[%emt 0:01:27] [#]} c4 $1 {[%emt 0:03:31]} 33. Bd4 {[%emt 0:00:23]} Qc7 {[%emt 0:00:44]} 34. Bxg7 {[%emt 0:00:10]} Kxg7 {[%emt 0:00:05]} 35. Qd4+ {[%emt 0:01:29]} (35. a3 $142) 35... Kh7 {[%emt 0:01:04] Hoping for ...c3.} 36. Qf6 {[%emt 0:00:30]} Qe7 {[%emt 0:01:02] Prevents Rd7.} 37. Qf4 {[%emt 0:00:26]} (37. Qxe7 Rxe7 38. Nf4) 37... c3 {[%emt 0:01:21] Black is clearly winning.} 38. Rc2 {[%emt 0:00:05]} b4 {[%emt 0:00:26]} 39. Nd4 {[%emt 0:00:09]} (39. Qe3 $142) 39... Red8 {[%emt 0:16:22] [#] And now ...Rc4 would win.} 40. Kh2 {[%emt 0:00:29]} Qg5 {[%emt 0:01:00]} 41. Nxe6 {[%emt 0:23:21]} Qxf4+ {[%emt 0:01:22]} 42. Nxf4 {[%emt 0:00:03]} Rxd1 {[%emt 0:00:11]} 43. Nd5 {[%emt 0:00:04]} a5 {[%emt 0:00:48] Weighted Error Value: White=0.51/Black=0.12 (very precise)} 0-1

[Event "44th Chess Olympiad Women 2022"]
[Site "Chennai"]
[Date "2022.08.09"]
[Round "11.43"]
[White "Clarke, Adani"]
[Black "Garcia, Angie"]
[Result "1-0"]
[ECO "E73"]
[WhiteElo "1812"]
[BlackElo "1894"]
[Annotator "NA RC COMBH"]
[PlyCount "95"]
[EventDate "2022.07.29"]
[EventType "team-tourn"]
[EventCountry "IND"]
[SourceTitle "playchess.com"]
[Source "ChessBase"]
[SourceQuality "1"]
[WhiteTeam "Jamaica"]
[BlackTeam "El Salvador"]
[WhiteTeamCountry "JAM"]
[BlackTeamCountry "ESA"]
[TimeControl "40/5400+30:1800+30"]

1. d4 {[%emt 0:00:03]} Nf6 {[%emt 0:00:08]} 2. c4 {[%emt 0:00:05]} g6 {[%emt 0:00:06]} 3. Nc3 {[%emt 0:00:04]} Bg7 {[%emt 0:00:08]} 4. e4 {[%emt 0:00:05]} d6 {[%emt 0:00:10]} 5. Be2 {[%emt 0:00:05]} O-O {[%emt 0:00:11]} 6. Be3 {[%emt 0:00:06]} Na6 {[%emt 0:00:19]} 7. g4 {[%emt 0:00:56]} c5 {[%emt 0:00:59]} 8. g5 {[%emt 0:02:17]} Nd7 {[%emt 0:01:06]} 9. Nf3 {[%emt 0:01:30]} Nc7 {[%emt 0:03:06]} 10. h4 {[%emt 0:04:07]} a6 {[%emt 0:01:15]} 11. Qd2 {[%emt 0:01:28]} Ne6 {[%emt 0:07:12]} 12. Rd1 {[%emt 0:07:08]} cxd4 {[%emt 0:03:32]} 13. Nxd4 {[%emt 0:00:22]} Ndc5 {[%emt 0:15:28]} 14. b4 {[%emt 0:06:54]} Nxd4 {[%emt 0:00:17]} 15. Bxd4 {[%emt 0:00:08]} Bxd4 {[%emt 0:00:15]} 16. Qxd4 {[%emt 0:00:09]} Ne6 {[%emt 0:00:04]} 17. Qe3 {[%emt 0:01:03]} Bd7 {[%emt 0:08:05]} 18. e5 {[%emt 0:06:42]} Bc6 {[%emt 0:03:38]} 19. Bf3 {[%emt 0:02:20]} Bxf3 {[%emt 0:01:43]} 20. Qxf3 {[%emt 0:00:09]} f6 {[%emt 0:04:17]} 21. gxf6 {[%emt 0:05:17]} exf6 {[%emt 0:00:36]} 22. Rxd6 {[%emt 0:00:19]} Qc8 {[%emt 0:07:29]} 23. Qd5 {[%emt 0:01:58]} Re8 {[%emt 0:02:54]} 24. Ne4 {[%emt 0:00:33]} Kh8 {[%emt 0:04:01]} 25. Nxf6 {[%emt 0:05:42]} Re7 {[%emt 0:01:41]} 26. O-O {[%emt 0:02:17]} Nf4 {[%emt 0:02:52]} 27. Qe4 {[%emt 0:01:15]} Qf5 {[%emt 0:06:40]} 28. Qxf5 {[%emt 0:03:24]} gxf5 {[%emt 0:00:06]} 29. Rfd1 {[%emt 0:01:12]} Rf8 {[%emt 0:02:23]} 30. Rd7 {[%emt 0:06:44]} Rff7 {[%emt 0:00:32]} 31. Rxe7 {[%emt 0:03:10]} Rxe7 {[%emt 0:00:05]} 32. Rd7 {[%emt 0:01:32]} Rxd7 {[%emt 0:01:54]} 33. Nxd7 {[%emt 0:00:08]} Nd3 {[%emt 0:00:53]} 34. a3 {[%emt 0:02:11]} Kg7 {[%emt 0:01:50]} 35. Kf1 {[%emt 0:03:33]} Nb2 {[%emt 0:02:12]} 36. Nb6 {[%emt 0:05:02]} Nd3 {[%emt 0:00:26]} 37. Nd7 {[%emt 0:04:10]} Nb2 {[%emt 0:00:39]} 38. Nb6 {[%emt 0:03:59]} Nd3 {[%emt 0:00:12]} 39. Ke2 {[%emt 0:00:08]} Nxe5 {[%emt 0:00:09]} 40. Ke3 {[%emt 0:01:29]} Kf6 {[%emt 0:01:46]} 41. h5 {[%emt 0:32:53]} Ng4+ {[%emt 0:31:59]} 42. Kf3 {[%emt 0:07:03]} Kg5 {[%emt 0:01:19]} 43. Nd7 {[%emt 0:00:22]} h6 {[%emt 0:01:15]} 44. a4 {[%emt 0:01:44]} Kxh5 {[%emt 0:01:13]} 45. a5 {[%emt 0:01:29]} Kg5 {[%emt 0:02:42]} 46. b5 {[%emt 0:00:29]} h5 {[%emt 0:00:05]} 47. c5 {[%emt 0:01:47]} Nh6 {[%emt 0:01:21]} 48. c6 {[%emt 0:01:08]} 1-0

[Event "44th Chess Olympiad Women 2022"]
[Site "Chennai"]
[Date "2022.08.09"]
[Round "11.43"]
[White "Herrera, Marjorie"]
[Black "Curwin, Nickaylah"]
[Result "1-0"]
[ECO "C02"]
[WhiteElo "1760"]
[BlackElo "1499"]
[Annotator "NA RC COMBH"]
[PlyCount "83"]
[EventDate "2022.07.29"]
[EventType "team-tourn"]
[EventCountry "IND"]
[SourceTitle "playchess.com"]
[Source "ChessBase"]
[SourceQuality "1"]
[WhiteTeam "El Salvador"]
[BlackTeam "Jamaica"]
[WhiteTeamCountry "ESA"]
[BlackTeamCountry "JAM"]
[TimeControl "40/5400+30:1800+30"]

1. e4 {[%emt 0:00:03]} e6 {[%emt 0:00:07]} 2. d4 {[%emt 0:00:20]} d5 {[%emt 0:00:09]} 3. e5 {[%emt 0:00:13]} c5 {[%emt 0:00:29]} 4. c3 {[%emt 0:00:11]} Nc6 {[%emt 0:00:48]} 5. Nf3 {[%emt 0:00:28]} Qb6 {[%emt 0:00:55]} 6. Bd3 {[%emt 0:00:49]} cxd4 {[%emt 0:02:13]} 7. O-O {[%emt 0:00:53]} Nge7 {[%emt 0:03:14]} 8. Re1 {[%emt 0:02:03]} Ng6 {[%emt 0:04:19]} 9. h4 {[%emt 0:04:57]} Be7 {[%emt 0:02:13]} 10. h5 {[%emt 0:01:34]} dxc3 {[%emt 0:33:06]} 11. Nxc3 {[%emt 0:07:26]} Nf8 {[%emt 0:09:51]} 12. a3 {[%emt 0:06:54]} h6 {[%emt 0:00:41]} 13. b4 {[%emt 0:10:40]} Bd7 {[%emt 0:08:18]} 14. Na4 {[%emt 0:05:58]} Qc7 {[%emt 0:02:28]} 15. Bb2 {[%emt 0:04:13]} a6 {[%emt 0:04:22]} 16. Rc1 {[%emt 0:07:19]} b5 {[%emt 0:05:51]} 17. Nc5 {[%emt 0:01:31]} Qb6 {[%emt 0:00:56]} 18. Rc2 {[%emt 0:09:56]} Bxc5 {[%emt 0:01:12]} 19. Rxc5 {[%emt 0:00:19]} Rc8 {[%emt 0:00:58]} 20. Qc2 {[%emt 0:02:50]} Qb7 {[%emt 0:03:58]} 21. Rc1 {[%emt 0:01:05]} Ne7 {[%emt 0:02:57]} 22. Nd4 {[%emt 0:03:38]} Rxc5 {[%emt 0:02:26]} 23. Qxc5 {[%emt 0:03:19]} Qb8 {[%emt 0:00:13]} 24. Nb3 {[%emt 0:03:59]} g6 {[%emt 0:04:03]} 25. Qd6 {[%emt 0:05:45]} Qd8 {[%emt 0:01:09]} 26. hxg6 {[%emt 0:01:46]} Nfxg6 {[%emt 0:01:18]} 27. Bxg6 {[%emt 0:01:52]} fxg6 {[%emt 0:00:17]} 28. Nc5 {[%emt 0:02:43]} Nf5 {[%emt 0:00:42]} 29. Qxa6 {[%emt 0:00:00]} Kf7 {[%emt 0:00:58]} 30. Qb7 {[%emt 0:01:49]} Ke7 {[%emt 0:01:41]} 31. Nxd7 {[%emt 0:00:13]} Qxd7 {[%emt 0:00:09]} 32. Rc7 {[%emt 0:00:08]} Rd8 {[%emt 0:00:14]} 33. Rxd7+ {[%emt 0:00:22]} Rxd7 {[%emt 0:00:01]} 34. Qxb5 {[%emt 0:00:19]} d4 {[%emt 0:00:04]} 35. Qd3 {[%emt 0:01:23]} Rd5 {[%emt 0:00:54]} 36. f4 {[%emt 0:04:21]} g5 {[%emt 0:01:27]} 37. g4 {[%emt 0:01:36]} Ne3 {[%emt 0:01:13]} 38. fxg5 {[%emt 0:00:44]} hxg5 {[%emt 0:00:29]} 39. Bxd4 {[%emt 0:02:52]} Nxg4 {[%emt 0:00:42]} 40. Qh7+ {[%emt 0:00:33]} Ke8 {[%emt 0:00:48]} 41. Qg8+ {[%emt 0:32:12]} Kd7 {[%emt 0:30:41]} 42. Qf7+ {[%emt 0:00:17]} 1-0

[Event "44th Chess Olympiad Women 2022"]
[Site "Chennai"]
[Date "2022.08.09"]
[Round "11.43"]
[White "Watson, Gabriella"]
[Black "Palacios, Celina"]
[Result "0-1"]
[ECO "B07"]
[WhiteElo "1164"]
[BlackElo "1715"]
[Annotator "NA RC COMBH"]
[PlyCount "46"]
[EventDate "2022.07.29"]
[EventType "team-tourn"]
[EventCountry "IND"]
[SourceTitle "playchess.com"]
[Source "ChessBase"]
[SourceQuality "1"]
[WhiteTeam "Jamaica"]
[BlackTeam "El Salvador"]
[WhiteTeamCountry "JAM"]
[BlackTeamCountry "ESA"]
[TimeControl "40/5400+30:1800+30"]

1. d4 {[%emt 0:00:04]} Nf6 {[%emt 0:01:21]} 2. Bf4 {[%emt 0:00:16]} d6 {[%emt 0:00:33]} 3. Nc3 {[%emt 0:00:43]} g6 {[%emt 0:01:23]} 4. e4 {[%emt 0:00:20]} c6 {[%emt 0:01:00]} 5. f3 {[%emt 0:00:34]} Bg7 {[%emt 0:00:25]} 6. Qd2 {[%emt 0:00:33]} b5 {[%emt 0:01:12]} 7. Nge2 {[%emt 0:00:56]} Nbd7 {[%emt 0:02:11]} 8. h3 {[%emt 0:07:11]} e5 {[%emt 0:02:27]} 9. Be3 {[%emt 0:00:39]} O-O {[%emt 0:01:19]} 10. Bh6 {[%emt 0:05:01]} Qa5 {[%emt 0:03:10]} 11. Bxg7 {[%emt 0:20:14]} Kxg7 {[%emt 0:00:26]} 12. g4 {[%emt 0:00:40]} b4 {[%emt 0:03:31]} 13. Nd1 {[%emt 0:00:50]} Rb8 {[%emt 0:11:32]} 14. h4 {[%emt 0:02:49]} h5 {[%emt 0:05:06]} 15. Nf2 {[%emt 0:06:34]} d5 {[%emt 0:08:46]} 16. Bh3 {[%emt 0:10:51]} dxe4 {[%emt 0:03:40]} 17. fxe4 {[%emt 0:01:43]} exd4 {[%emt 0:05:52]} 18. Nxd4 {[%emt 0:04:31]} Ne5 {[%emt 0:03:44]} 19. g5 {[%emt 0:11:19]} Nfg4 {[%emt 0:04:49]} 20. Bg2 {[%emt 0:04:48]} Rd8 {[%emt 0:03:39]} 21. O-O {[%emt 0:04:38]} Qc7 {[%emt 0:06:15]} 22. Rad1 {[%emt 0:01:30]} c5 {[%emt 0:01:12]} 23. Nb5 {[%emt 0:02:00]} Nf3+ {[%emt 0:00:41]} 0-1

[Event "44th Chess Olympiad Women 2022"]
[Site "Chennai"]
[Date "2022.08.09"]
[Round "11.44"]
[White "Punsalan, Vyanla M"]
[Black "De la Riva Real, Ariadna"]
[Result "1-0"]
[ECO "B06"]
[WhiteElo "1895"]
[BlackElo "1649"]
[Annotator "NA RC COMBH"]
[PlyCount "83"]
[EventDate "2022.07.29"]
[EventType "team-tourn"]
[EventCountry "IND"]
[SourceTitle "playchess.com"]
[Source "ChessBase"]
[SourceQuality "1"]
[WhiteTeam "New Zealand"]
[BlackTeam "Andorra"]
[WhiteTeamCountry "NZL"]
[BlackTeamCountry "AND"]
[TimeControl "40/5400+30:1800+30"]

1. e4 {[%emt 0:00:07]} c5 {[%emt 0:00:07]} 2. c3 {[%emt 0:00:25]} d5 {[%emt 0:00:21]} 3. exd5 {[%emt 0:00:14]} Qxd5 {[%emt 0:00:11]} 4. d4 {[%emt 0:00:40]} g6 {[%emt 0:02:45]} 5. Nf3 {[%emt 0:02:02]} Bg7 {[%emt 0:02:45]} 6. Be2 {[%emt 0:05:19]} Nc6 {[%emt 0:05:04]} 7. Be3 {[%emt 0:03:42]} cxd4 {[%emt 0:04:58]} 8. cxd4 {[%emt 0:01:06]} Nh6 {[%emt 0:07:15]} 9. Nc3 {[%emt 0:04:57]} Qa5 {[%emt 0:05:55]} 10. Bxh6 {[%emt 0:02:25]} Bxh6 {[%emt 0:00:08]} 11. d5 {[%emt 0:00:41]} Nb4 {[%emt 0:01:47]} 12. Bb5+ {[%emt 0:03:15]} Bd7 {[%emt 0:05:05]} 13. Bxd7+ {[%emt 0:02:45]} Kxd7 {[%emt 0:00:02]} 14. a3 {[%emt 0:02:47]} Na6 {[%emt 0:02:38]} 15. O-O {[%emt 0:01:25]} Bg7 {[%emt 0:04:51]} 16. b4 {[%emt 0:04:51]} Qc7 {[%emt 0:06:21]} 17. Qa4+ {[%emt 0:03:37]} Kd8 {[%emt 0:01:54]} 18. Nb5 {[%emt 0:04:47]} Qd7 {[%emt 0:02:15]} 19. Rac1 {[%emt 0:03:11]} h5 {[%emt 0:04:14]} 20. d6 {[%emt 0:10:22]} exd6 {[%emt 0:03:32]} 21. Rfd1 {[%emt 0:02:11]} d5 {[%emt 0:00:42]} 22. Qa5+ {[%emt 0:04:51]} Ke8 {[%emt 0:03:43]} 23. Rc7 {[%emt 0:04:39]} Nxc7 {[%emt 0:02:25]} 24. Nxc7+ {[%emt 0:00:16]} Ke7 {[%emt 0:01:15]} 25. Qc5+ {[%emt 0:01:27]} Kd8 {[%emt 0:04:22]} 26. Nxa8 {[%emt 0:02:01]} Qc6 {[%emt 0:01:29]} 27. Qxa7 {[%emt 0:04:16]} Re8 {[%emt 0:02:50]} 28. Qa5+ {[%emt 0:04:18]} Ke7 {[%emt 0:02:38]} 29. Nb6 {[%emt 0:02:30]} d4 {[%emt 0:00:55]} 30. Ne5 {[%emt 0:03:17]} Bxe5 {[%emt 0:03:00]} 31. Qxe5+ {[%emt 0:00:51]} Kf8 {[%emt 0:00:18]} 32. Qh8+ {[%emt 0:00:23]} Ke7 {[%emt 0:00:08]} 33. Re1+ {[%emt 0:00:14]} Kd8 {[%emt 0:00:22]} 34. Qxe8+ {[%emt 0:01:35]} Qxe8 {[%emt 0:00:09]} 35. Rxe8+ {[%emt 0:00:07]} Kxe8 {[%emt 0:00:08]} 36. Kf1 {[%emt 0:00:09]} Ke7 {[%emt 0:00:12]} 37. Ke2 {[%emt 0:00:18]} Ke6 {[%emt 0:00:10]} 38. Kd3 {[%emt 0:00:11]} Ke5 {[%emt 0:00:07]} 39. b5 {[%emt 0:00:15]} f5 {[%emt 0:00:20]} 40. a4 {[%emt 0:00:27]} f4 {[%emt 0:00:17]} 41. a5 {[%emt 0:31:03]} Kd6 {[%emt 0:31:02]} 42. a6 {[%emt 0:00:14]} 1-0